Cogmind - Beta 16 @@@ ROGUE MODE // 2026.01.31 @ 14:03:07 Player: Artackni Result: Destroyed by G-67 Veteran with Plasma Rifle Performance ------------- Evolutions (6) 3000 Regions Visited (9) 1800 Robots Destroyed (35) 175 Value Destroyed (817) 817 Prototype IDs (10) 200 Alien Tech Used (0) 0 Bonus (1903) 1903 TOTAL SCORE: 7895 Bonus ------- Follower Combat Kills 417 Entered Garrisons 200 Used RIF Installer 500 Registered with UFD 300 Met Optimus in HQ 500 Friendly Fire -14 Cogmind --------- Core Integrity 0/1150 Matter 232/300 Energy 98/100 System Corruption 3% Temperature Cool (36) Movement Core (50) Location -4/Factory Parts ------- > --- POWER (1) -------- (None) > --- PROPULSION (5) --- (None) > --- UTILITY (11) ----- Enhanced Optical Array Experimental Hacking Suite Advanced System Shield > --- WEAPON (2) ------- (None) > --- INVENTORY (5) ---- Advanced Terrain Scanner Surveybot 24 Chip Improved Plasma Cutter Peak State ------------ > --- POWER ------------ Micro Fission Core > --- PROPULSION ------- Nuclear Pulse Array Cooled Field Propulsion Drive Field Propulsion Array > --- UTILITY ---------- Power Amplifier Enhanced Optical Array Core Analyzer Advanced ECM Suite Improved Reaction Control System Improved Cloaking Device Improved Hacking Suite Experimental Hacking Suite Experimental Hacking Suite Experimental Hacking Suite Advanced System Shield > --- WEAPON ----------- (None) > --- INVENTORY -------- Field Propulsion Array Advanced Terrain Scanner Surveybot 24 Chip Improved Plasma Cutter [Rating: 108] Favorites ----------- Power Light Ion Engine Engine Light Ion Engine Power Core Light Fission Core Propulsion Xenon Bombardment Thruster Leg Flexi-carbon Leg Wheel Wheel Hover Unit Gravmag System Flight Unit Xenon Bombardment Thruster Utility Makeshift Hacking Suite Device Weight Redist. System Storage Medium Storage Unit Processor Enhanced Optical Array Hackware Makeshift Hacking Suite Protection Layered Medium Armor Plating Weapon Mini Grenade Launcher Energy Gun Small Laser Ballistic Gun Light Assault Rifle Launcher Mini Grenade Launcher Slashing Weapon Scythe Build | -11 -10 -10 -9 -6 -6 -6 -6 -5 -4 ------- Run | Yrd Mat Sub Scr Fac Was Fac Gar Fac Fac Slots Evolved 12 | . . . . 8 . . . 2 2 Power . | . . . . . . . . . . Propulsion 3 | . . . . 2 . . . . 1 Utility 9 | . . . . 6 . . . 2 1 Weapon . | . . . . . . . . . . Parts Attached 84 | 6 11 . 4 21 . 6 1 16 19 Power 8 | 1 2 . . 3 . . . 2 . Engine 5 | 1 2 . . 2 . . . . . Core 3 | . . . . 1 . . . 2 . Reactor . | . . . . . . . . . . Propulsion 23 | 2 2 . . 6 . 2 1 7 3 Treads . | . . . . . . . . . . Leg 1 | . . . . 1 . . . . . Wheel 2 | 2 . . . . . . . . . Hover 2 | . . . . . . . . 2 . Flight 18 | . 2 . . 5 . 2 1 5 3 Utility 42 | 1 3 . 2 10 . 4 . 7 15 Device 15 | 1 1 . . 5 . 1 . 1 6 Storage 1 | . 1 . . . . . . . . Processor 6 | . . . . 2 . 1 . 2 1 Hackware 15 | . . . 1 2 . 1 . 4 7 Protection 5 | . 1 . 1 1 . 1 . . 1 Artifact . | . . . . . . . . . . Weapon 11 | 2 4 . 2 2 . . . . 1 Energy Gun 5 | 2 2 . . . . . . . 1 Energy Cannon . | . . . . . . . . . . Ballistic Gun 1 | . 1 . . . . . . . . Ballistic Cannon . | . . . . . . . . . . Launcher 2 | . 1 . 1 . . . . . . Special Weapon . | . . . . . . . . . . Impact Weapon . | . . . . . . . . . . Slashing Weapon 3 | . . . 1 2 . . . . . Piercing Weapon . | . . . . . . . . . . Special Melee Weapon . | . . . . . . . . . . Unidentified Prototypes 2 | . . . . . . . . . 2 Parts Lost 45 | . 4 . 1 5 . 1 1 16 17 Power 3 | . . . . 2 . . . . 1 Propulsion 17 | . 2 . 1 1 . 1 1 7 4 Utility 20 | . . . . 2 . . . 7 11 Weapon 5 | . 2 . . . . . . 2 1 Highest Loss Streak 11 | . 3 . 1 2 . 1 1 8 11 To Critical Strikes . | . . . . . . . . . . Average Backups 4 | . 4 9 8 3 3 3 3 3 3 Power . | . 1 1 . . . . 1 . . Propulsion . | . . . 1 . 2 1 . . . Utility 1 | . . 1 1 1 1 1 2 2 2 Weapon 1 | . 2 7 3 1 . . . . . Tool/Special . | . . . . . . . . . . Unused Backups 17 | . . 1 8 . . 1 . 3 4 Power 2 | . . . 1 . . . . 1 . Propulsion 2 | . . . 2 . . . . . . Utility 6 | . . . . . . 1 . 2 3 Weapon 4 | . . 1 3 . . . . . . Tool/Special 3 | . . . 2 . . . . . 1 Average Slot Usage (%) 82 | . 86 85 84 59 98 99 100 79 60 Engine 5 | . 14 14 13 3 . . . . . Core 2 | . . . . 1 6 6 6 3 4 Wheel 3 | . 16 . . . . . . . . Flight 15 | . . 28 27 7 26 25 26 15 13 Device 12 | . 16 14 14 17 20 7 6 5 14 Storage 2 | . . 14 11 . . . . . . Processor 6 | . . . . 4 6 12 13 12 10 Hackware 13 | . . . . 14 20 25 26 26 13 Protection 4 | . 9 . 1 . 6 6 6 3 2 Energy Gun 4 | . 22 . . . . . . . . Launcher 4 | . . 14 13 . 4 6 6 3 . Slashing Weapon 3 | . . . 1 6 6 6 6 4 . Peak Build Rating 108 | 6 11 11 16 67 65 66 65 83 108 Average Rating 41 | 4 7 11 11 33 64 64 63 65 79 On Entrance 33 | . 6 11 11 14 63 65 65 62 42 Avg Prop Armor Cover (%) 19 | . . . . 19 . . . 23 4 Naked Turns . | . . . . . . . . . . Heaviest Build 28 | 8 14 14 14 23 23 23 19 19 28 Greatest Support 37 | 26 26 14 14 30 24 27 25 24 37 Greatest Overweight (x) 4 | . 4 . . 2 . . . . . Average Overweight (x) . | . . . . . . . . . . Largest Inventory Capacity 10 | 5 10 10 10 5 5 5 5 5 5 Average Capacity 5 | 5 5 10 9 5 5 5 5 5 5 Most Carried 10 | 1 9 10 10 5 5 5 5 5 5 Average Carried 5 | . 4 9 8 4 4 4 4 4 4 Final Capacity 10 | 5 10 10 5 5 5 5 5 5 5 Final Carried 10 | 1 9 10 5 5 5 5 4 4 3 Class Distribution -------------------- 28% | Hacker-Scout 21% | Mutant 18% | Sprinter 16% | Hacker-Mutant 4% | Hacker-Sprinter 3% | Hacker-Ninja Dominant Class ---------------- Mutant | -10/Materials Sprinter | -10/Subcaves Sprinter | -9/Scraptown Hacker-Mutant | -6/Factory Hacker-Scout | -6/Waste Hacker-Scout | -6/Factory Hacker-Scout | -6/Garrison Hacker-Scout | -5/Factory Hacker-Mutant | -4/Factory Resources | -11 -10 -10 -9 -6 -6 -6 -6 -5 -4 ----------- Run | Yrd Mat Sub Scr Fac Was Fac Gar Fac Fac Matter Collected 1077 | 260 89 130 25 78 . 132 . 291 72 Remotely . | . . . . . . . . . . Salvage Created 1068 | 32 472 62 . 213 . 186 . 103 . Parts 69 | 5 20 5 . 15 . 13 . 11 . Haulers Intercepted 3 | . 2 . . . . 1 . . . Recyclers Shooed 1 | 1 . . . . . . . . . Parts Field Recycled . | . . . . . . . . . . Retrieved Matter . | . . . . . . . . . . Parts Self-Destructed 8 | . . 8 . . . . . . . Prevented . | . . . . . . . . . . Parts Restored . | . . . . . . . . . . Kills | -11 -10 -10 -9 -6 -6 -6 -6 -5 -4 ------- Run | Yrd Mat Sub Scr Fac Was Fac Gar Fac Fac Combat Hostiles Destroyed 17 | . 6 3 . 1 . 3 . 4 . Melee 1 | . . . . 1 . . . . . Guns 6 | . 6 . . . . . . . . AOE 10 | . . 3 . . . 3 . 4 . Classes Destroyed 11 | 1 5 1 . 1 . 2 . 1 . Worker 5 | . 2 . . 2 . 1 . . . Builder 1 | . . . . . . 1 . . . Tunneler 3 | 2 1 . . . . . . . . Hauler 3 | . 2 . . . . 1 . . . Recycler 2 | . 1 . . 1 . . . . . Operator 1 | . . . . . . . . 1 . Watcher 3 | . 1 . . . . . . 2 . Swarmer 7 | . . . . . . 3 . 4 . Grunt 7 | . 6 1 . . . . . . . Hunter 1 | . . . . 1 . . . . . Subdweller 2 | . . 2 . . . . . . . Best Kill Streak 6 | 1 4 1 . 3 . 6 . 4 . Combat Bots Only 4 | . 2 1 . 1 . 3 . 4 . Max Kills in Single Turn 3 | 1 1 1 . 1 . 3 . 3 . Gunslinging . | . . . . . . . . . . Exploded 3 | . . 1 . . . 3 . 3 . Melee 1 | . . . . 1 . . . . . Uniques/NPCs Destroyed . | . . . . . . . . . . Combat | -11 -10 -10 -9 -6 -6 -6 -6 -5 -4 -------- Run | Yrd Mat Sub Scr Fac Was Fac Gar Fac Fac Hostile Shots Fired 566 | . 39 1 9 75 . 37 21 142 242 Missed 289 | . 8 . 4 40 . 21 9 61 146 Hits 277 | . 31 1 5 35 . 16 12 81 96 Melee 1 | . . . . . . . . . 1 Projectile 276 | . 31 1 5 35 . 16 12 81 95 AOE 7 | . . . . . . . . . 7 Critical Strikes 9 | . 2 . . . . . . 1 6 Damage Taken 5395 | . 420 55 35 512 . 275 223 1485 2390 Core 2135 | . 11 . 7 211 . 46 82 613 1165 Absorbed by Shields 59 | . . . . 39 . . . . 20 Regen/Repaired (Parts) 83 | . . . . . . 83 . . . Core Remaining (%) 72 | 100 . . 92 . . . 60 38 . Volleys Fired 89 | 3 69 8 . . . 5 . 4 . Largest 2 | 2 2 1 . . . 1 . 1 . Hottest 105 | 80 105 30 . . . 30 . 30 . Shots Fired 135 | 6 112 8 . . . 5 . 4 . Gun 118 | 6 112 . . . . . . . . Cannon . | . . . . . . . . . . Launcher 17 | . . 8 . . . 5 . 4 . Special . | . . . . . . . . . . Kinetic 29 | . 29 . . . . . . . . Thermal 89 | 6 83 . . . . . . . . Explosive 17 | . . 8 . . . 5 . 4 . Electromagnetic . | . . . . . . . . . . Robot Hit Streak 11 | 3 11 5 . . . . . . . Robot Miss Streak 3 | 1 3 . . . . . . 2 . Penetration Max . | . . . . . . . . . . Secondary Targets . | . . . . . . . . . . Shots Hit Robots 101 | 4 70 4 . 6 . 13 . 4 . Core Hits 54 | 2 27 5 . 3 . 8 . 9 . Critical Kills . | . . . . . . . . . . Critical Parts Destroyed . | . . . . . . . . . . Critical Strikes 3 | . 1 . . 1 . 1 . . . Burn 1 | . 1 . . . . . . . . Sever 2 | . . . . 1 . 1 . . . Melee Attacks 68 | . . . 1 20 . 24 . 23 . Impact . | . . . . . . . . . . Slashing 68 | . . . 1 20 . 24 . 23 . Piercing . | . . . . . . . . . . Sneak Attacks 9 | . . . . 5 . 3 . 1 . Combat Hostiles . | . . . . . . . . . . Follow-up Attacks . | . . . . . . . . . . Damage Inflicted 3102 | 52 803 384 . 468 . 873 . 522 . Guns 855 | 52 803 . . . . . . . . Cannons . | . . . . . . . . . . Explosions 994 | . . 384 . . . 305 . 305 . Melee 1246 | . . . . 468 . 568 . 210 . Ramming 7 | . . . . . . . . 7 . Kinetic 154 | . 154 . . . . . . . . Thermal 701 | 52 649 . . . . . . . . Explosive 994 | . . 384 . . . 305 . 305 . Electromagnetic . | . . . . . . . . . . Impact . | . . . . . . . . . . Slashing 1246 | . . . . 468 . 568 . 210 . Piercing . | . . . . . . . . . . Highest Corruption 3 | . . . . . . . . 1 3 Average Corruption 1 | . . . . . . . . 1 1 Corruption Purged . | . . . . . . . . . . Corruption Blocked . | . . . . . . . . . . Effects 1 | . . . . . . . . 1 . Matter Fused 1 | . . . . . . . . 1 . Overload Shots . | . . . . . . . . . . Overflow Damage 244 | . . 16 . 60 . 80 . 88 . Projectiles . | . . . . . . . . . . Explosions 21 | . . 16 . . . 5 . . . Melee 223 | . . . . 60 . 75 . 88 . Knockbacks . | . . . . . . . . . . Impact . | . . . . . . . . . . Kinetic . | . . . . . . . . . . Secondary . | . . . . . . . . . . Self-Inflicted Damage 142 | . . 38 . . . 27 . 77 . Shots 4 | . . 1 . . . 1 . 2 . Rammed 1 | . . . . . . . . 1 . Targets Rammed 1 | . . . . . . . . 1 . Kicked . | . . . . . . . . . . Crushed . | . . . . . . . . . . Highest Temperature 299 | 18 299 . 3 5 . 11 41 3 25 Average Temperature 102 | 12 118 . 3 4 . 5 32 3 8 Received Heat Transfer 966 | . 279 6 30 140 . 36 57 189 229 Effects 2 | . 2 . . . . . . . . Interference 2 | . 2 . . . . . . . . Siege Activations . | . . . . . . . . . . Martial Activations . | . . . . . . . . . . Shielding Activations . | . . . . . . . . . . Robots Disrupted . | . . . . . . . . . . Combat Hostiles . | . . . . . . . . . . Robots Corrupted . | . . . . . . . . . . Combat Hostiles . | . . . . . . . . . . Parts Fried . | . . . . . . . . . . Impact Corruptions . | . . . . . . . . . . Robots Melted . | . . . . . . . . . . Combat Hostiles . | . . . . . . . . . . Parts Melted 2 | . 2 . . . . . . . . Heat Transferred 1678 | 125 1553 . . . . . . . . Parts Sabotaged . | . . . . . . . . . . Parts Stolen . | . . . . . . . . . . Parts Stripped . | . . . . . . . . . . Power Chain Reactions . | . . . . . . . . . . Alert | -11 -10 -10 -9 -6 -6 -6 -6 -5 -4 ------- Run | Yrd Mat Sub Scr Fac Was Fac Gar Fac Fac Maximum Alert Level 3 | . . . . . . . . 3 3 Low Security (%) 77 | 100 100 . . 100 100 100 100 53 . Level 1 9 | . . . . . . . . 38 9 Level 2 11 | . . . . . . . . 3 83 Level 3 1 | . . . . . . . . 4 6 Level 4 . | . . . . . . . . . . Level 5 . | . . . . . . . . . . High Security . | . . . . . . . . . . Max Security . | . . . . . . . . . . Peak Influence 863 | 5 61 . . 45 12 154 128 863 733 Initial 417 | . . . . . 12 . 98 84 417 Average 123 | 1 11 . . 7 5 51 111 191 509 Influence Increases 3443 | 10 268 20 . 166 . 489 112 1503 875 Destroy 0b10 Robot/C 560 | . 120 20 . 20 . 60 20 320 . Destroy 0b10 Robot/NC 95 | 10 35 . . 15 . 15 . 20 . Destroy Leader 132 | . 36 . . . . 12 . 84 . Allied During Kill 98 | . . . . . . . 2 96 . Trap Triggered on 0b10 60 | . . . . . . . . 10 50 Successful Hack 103 | . . . . 18 . 56 . 29 . Select Force Hacks 30 | . . . . . . . . 30 . Disable Machine 105 | . . . . 15 . 45 . 45 . Destroy Structure 265 | . 2 . . 8 . 61 . 194 . Partial Spotted 300 | . 45 . . 45 . 75 30 60 45 Lose Combat Pursuer 1695 | . 30 . . 45 . 165 60 615 780 Influence Decreases 2769 | 10 259 29 . 129 37 348 93 810 1054 Entered New Map 585 | . . 5 . . 25 . 43 76 436 Time Decay 1347 | 10 239 24 . 112 12 338 . 374 238 Search Patrol Dispatched 300 | . . . . . . . . 100 200 Lost Part 377 | . 20 . . 17 . . 10 160 170 Lost Ally 160 | . . . . . . 10 40 100 10 Squads Dispatched 40 | . 1 . . 4 . 11 . 14 10 Investigation 21 | . . . . 3 . 7 . 8 3 Extermination 7 | . . . . 1 . 2 . 2 2 Reinforcement 11 | . 1 . . . . 1 . 4 5 Assault . | . . . . . . . . . . Garrison 1 | . . . . . . 1 . . . Intercept . | . . . . . . . . . . Searches Triggered 3 | . . . . . . . . 1 2 Construction Impeded 1 | . . . . . . . . 1 . Haulers Reinforced . | . . . . . . . . . . Active Scanning Responses . | . . . . . . . . . . Cargo Convoy Interrupts . | . . . . . . . . . . Stealth | -11 -10 -10 -9 -6 -6 -6 -6 -5 -4 --------- Run | Yrd Mat Sub Scr Fac Was Fac Gar Fac Fac Distress Signals 6 | . 1 . . . . 1 . 2 2 Communications Jammed . | . . . . . . . . . . Distress Signals . | . . . . . . . . . . Times Spotted 249 | . 17 3 6 7 6 27 15 80 88 Peak Tracking Total 18 | . 3 1 4 4 6 7 15 14 18 Tactical Retreats 38 | . 2 . 1 3 . 6 1 13 12 ECM-based Alert Blocks 1 | . . . . . . . . . 1 Traps | -11 -10 -10 -9 -6 -6 -6 -6 -5 -4 ------- Run | Yrd Mat Sub Scr Fac Was Fac Gar Fac Fac Traps Triggered 12 | . . . . 7 . 2 . . 3 Indirectly . | . . . . . . . . . . Trap Hack Attempts . | . . . . . . . . . . Triggered . | . . . . . . . . . . Disarmed . | . . . . . . . . . . Reprogrammed 6 | . . . . . . . . . 6 Reused 6 | . . . . . . . . 1 5 Traps Extracted . | . . . . . . . . . . Installed 1 | . . . . . . . . 1 . Triggered 6 | . . . . . . . . 1 5 Most Traps Carried 1 | . . . 1 1 1 1 1 1 . Machines | -11 -10 -10 -9 -6 -6 -6 -6 -5 -4 ---------- Run | Yrd Mat Sub Scr Fac Was Fac Gar Fac Fac Machines Disabled 8 | . . . 1 1 . 3 . 3 . Max in Single Turn 2 | . . . 1 1 . 2 . . . Garrison Access 3 | . . . . . . 1 . . 2 Machines Repaired . | . . . . . . . . . . Machines Dismantled . | . . . . . . . . . . Machines Sabotaged . | . . . . . . . . . . Overloaded Fab Kills . | . . . . . . . . . . Hacking | -11 -10 -10 -9 -6 -6 -6 -6 -5 -4 --------- Run | Yrd Mat Sub Scr Fac Was Fac Gar Fac Fac Machines Accessed 49 | . . . 1 5 . 19 2 14 8 Terminals 23 | . . . . 2 . 9 2 6 4 Fabricators 1 | . . . . . . 1 . . . Repair Stations 4 | . . . . 1 . 3 . . . Recycling Units 13 | . . . . 2 . 3 . 6 2 Scanalyzers 1 | . . . . . . 1 . . . Garrison Access 6 | . . . . . . 2 . 2 2 Total Hacks 101 | . . . 1 12 . 37 2 30 19 Successful 64 | . . . 1 6 . 25 2 20 10 Failed 37 | . . . . 6 . 12 . 10 9 Catastrophic 5 | . . . . . . 2 . 2 1 Database Lockouts . | . . . . . . . . . . Manual 62 | . . . . 9 . 17 . 21 15 Terminals 64 | . . . . 6 . 22 2 20 14 Fabricators 2 | . . . . . . 2 . . . Repair Stations 6 | . . . . 2 . 4 . . . Recycling Units 16 | . . . . 4 . 3 . 6 3 Scanalyzers 3 | . . . . . . 3 . . . Garrison Access 9 | . . . . . . 3 . 4 2 Terminal Hacks 29 | . . . 1 3 . 10 2 9 4 Record 4 | . . . . . . 1 . 3 . Part Schematic 3 | . . . . . . 1 . 2 . Open Door 1 | . . . . . . . 1 . . Level Access Points 1 | . . . . . . . . . 1 Branch Access Points 3 | . . . . . . 1 . 1 1 Emergency Access Points 1 | . . . . . . . 1 . . Machine Index 1 | . . . . . . 1 . . . Locate Traps 1 | . . . . 1 . . . . . Reprogram Traps 1 | . . . . . . . . . 1 Recall Investigation 4 | . . . . 1 . 2 . 1 . Recall Extermination 2 | . . . . . . 1 . 1 . Recall Reinforcements 2 | . . . . . . 1 . 1 . Registered Components 3 | . . . . 1 . 1 . . 1 Zone Layout 1 | . . . . . . 1 . . . Proto ID Catalog 1 | . . . 1 . . . . . . Fabricator Hacks 2 | . . . . . . 2 . . . Load Schematic 1 | . . . . . . 1 . . . Build 1 | . . . . . . 1 . . . Repair Station Hacks 3 | . . . . 1 . 2 . . . Scan Component 1 | . . . . . . 1 . . . Repair 1 | . . . . . . 1 . . . Refit 1 | . . . . 1 . . . . . Recycling Unit Hacks . | . . . . . . . . . . Scanalyzer 3 | . . . . . . 3 . . . Insert Component 1 | . . . . . . 1 . . . Analyze 1 | . . . . . . 1 . . . Retrieve Study 1 | . . . . . . 1 . . . Garrison Access Hacks 6 | . . . . . . 2 . 2 2 Unlock Access 1 | . . . . . . 1 . . . Seal Access 3 | . . . . . . 1 . . 2 Coupler Status 2 | . . . . . . . . 2 . Unauthorized Hacks 21 | . . . . 2 . 6 . 9 4 Terminals 4 | . . . . . . 1 . 1 2 Assimilate 3 | . . . . . . 1 . 1 1 Detonate 1 | . . . . . . . . . 1 Fabricators . | . . . . . . . . . . Repair Stations 2 | . . . . . . 2 . . . Patch 2 | . . . . . . 2 . . . Recycling Units 13 | . . . . 2 . 3 . 6 2 Fedlink 11 | . . . . 2 . 3 . 4 2 Scrapoids 1 | . . . . . . . . 1 . Scraphulk 1 | . . . . . . . . 1 . Scanalyzers . | . . . . . . . . . . Garrison Access 2 | . . . . . . . . 2 . Restock 1 | . . . . . . . . 1 . Eject 1 | . . . . . . . . 1 . Data Cores Recovered . | . . . . . . . . . . Used . | . . . . . . . . . . Hacking Detections 25 | . . . . 4 . 11 1 8 1 Full Trace Events 4 | . . . . 1 . 2 . 1 . Feedback Events . | . . . . . . . . . . Feedback Blocked . | . . . . . . . . . . Robot Schematics Acquired . | . . . . . . . . . . Robots Built . | . . . . . . . . . . Authchips . | . . . . . . . . . . Time . | . . . . . . . . . . Total Robot Build Rating . | . . . . . . . . . . Part Schematics Acquired 4 | . . . . . . 2 . 2 . Parts Built 2 | . . . . . . 2 . . . Authchips . | . . . . . . . . . . Time 95 | . . . . . . 95 . . . Total Part Build Rating 10 | . . . . . . 10 . . . Part Studies Acquired 1 | . . . . . . 1 . . . Parts Repaired 1 | . . . . . . 1 . . . Time 70 | . . . . . . 70 . . . Parts Recycled . | . . . . . . . . . . Recycled Matter . | . . . . . . . . . . Retrieved Matter . | . . . . . . . . . . Retrieved Components . | . . . . . . . . . . Parts Scanalyzed 1 | . . . . . . 1 . . . Part Schematics Acquired 1 | . . . . . . 1 . . . Parts Damaged . | . . . . . . . . . . Bothacking | -11 -10 -10 -9 -6 -6 -6 -6 -5 -4 ------------ Run | Yrd Mat Sub Scr Fac Was Fac Gar Fac Fac Used RIF Installer 1 | . . . . . . . 1 . . Robots Hacked . | . . . . . . . . . . Non-combat . | . . . . . . . . . . Combat . | . . . . . . . . . . Robot Hacks Applied . | . . . . . . . . . . Relay Couplers Released 3 | . . . . . . . . 3 . Ejected 3 | . . . . . . . . 3 . Fabnet Peak Effective % . | . . . . . . . . . . Robots Rewired . | . . . . . . . . . . Allies Hacked . | . . . . . . . . . . Hacks Repelled . | . . . . . . . . . . Allies | -11 -10 -10 -9 -6 -6 -6 -6 -5 -4 -------- Run | Yrd Mat Sub Scr Fac Was Fac Gar Fac Fac Total Allies 10 | . . . . . . 1 2 6 1 Largest Group 5 | . . . . . . 1 2 5 1 Highest-Rated Group 235 | . . . . . . 10 75 235 26 Highest-Rated Ally 123 | . . . . . . 10 46 123 26 Total Orders . | . . . . . . . . . . Ally Attacks 83 | . . . . . . . 10 73 . Total Damage 2475 | . . . . . . . 255 2220 . Kills 14 | . . . . . . . 1 13 . Allies Corrupted . | . . . . . . . . . . Allies Melted . | . . . . . . . . . . Intel | -11 -10 -10 -9 -6 -6 -6 -6 -5 -4 ------- Run | Yrd Mat Sub Scr Fac Was Fac Gar Fac Fac Active Infowar (turns) 3425 | 9 590 . . 338 45 1019 34 873 517 Optics 2340 | . . . . . . 916 34 873 517 Sensors 1995 | . . . . 338 45 1019 34 559 . Traps 223 | . . . . 28 45 150 . . . Seismic 599 | 9 590 . . . . . . . . Cloaking 440 | . . . . . . . . 347 93 ECM 1 | . . . . . . . . . 1 Robot Analysis Total . | . . . . . . . . . . Derelict Logs Recovered 3 | . . 1 2 . . . . . . Drone Launches . | . . . . . . . . . . Drone Recoveries . | . . . . . . . . . . Exploration | -11 -10 -10 -9 -6 -6 -6 -6 -5 -4 ------------- Run | Yrd Mat Sub Scr Fac Was Fac Gar Fac Fac Turns Passed 4971 | 64 995 303 586 535 45 1019 34 873 517 Spaces Moved 9883 | 59 782 589 1749 864 138 2100 120 2116 1366 Core 735 | 20 250 . . 292 . . . 95 78 Treads . | . . . . . . . . . . Legs . | . . . . . . . . . . Wheels 545 | 39 506 . . . . . . . . Hover . | . . . . . . . . . . Flight 8603 | . 26 589 1749 572 138 2100 120 2021 1288 Fastest Speed 27 | 50 32 32 32 31 31 28 27 27 32 Average Speed 37 | 76 97 32 32 39 31 30 27 30 35 Slowest Speed 250 | 90 250 32 35 150 31 34 28 50 50 Overloaded Moves . | . . . . . . . . . . Propulsion Burnouts . | . . . . . . . . . . Robots Hopped 49 | . . . . . . 14 2 18 15 Potential Cave-ins . | . . . . . . . . . . Cave-ins Triggered . | . . . . . . . . . . Exploration Rate (%) 48 | 3 77 41 94 22 73 47 31 50 51 Regions Visited 9 Branch Regions 2 Pre-discovered Areas 2 | . . . 1 1 . . . . . Known Exits Taken 1 | . . . . . . 1 . . . Unknown Exits Taken 5 | 1 1 1 1 . . . . 1 . Scrap Searched 8 | . . 4 4 . . . . . . Spaces Dug 47 | . . 6 . 8 . 16 . 17 . Terrain Destroyed 193 | . . 48 . 8 . 80 . 57 . Melee 33 | . . . . 8 . 8 . 17 . Projectile . | . . . . . . . . . . AOE 160 | . . 48 . . . 72 . 40 . Terrain Rammed . | . . . . . . . . . . Walls Destroyed . | . . . . . . . . . . Machines Disabled . | . . . . . . . . . . Actions | -11 -10 -10 -9 -6 -6 -6 -6 -5 -4 --------- Run | Yrd Mat Sub Scr Fac Was Fac Gar Fac Fac Total 10808 | 68 905 696 1777 1024 139 2422 118 2276 1383 Wait 596 | . 33 93 . 73 . 276 . 117 4 Move 9789 | 58 781 588 1748 864 137 2076 116 2082 1339 Hop 38 | . . . . . . 10 1 15 12 Pick Up 35 | 1 6 4 9 2 1 5 . 6 1 Fast Attach 62 | 6 7 . 4 16 . 1 . 12 16 Attach 12 | . 1 . . 4 1 2 1 2 1 Detach 10 | . 3 . 1 2 . . . 2 2 Swap 14 | . 3 . . 2 . 5 . 2 2 Drop 42 | . 2 3 14 5 . 7 . 9 2 Fire 89 | 3 69 8 . . . 5 . 4 . Melee 68 | . . . 1 20 . 24 . 23 . Ram 1 | . . . . . . . . 1 . Kick . | . . . . . . . . . . Crush . | . . . . . . . . . . Escape Stasis 51 | . . . . 36 . 11 . . 4 Rewire . | . . . . . . . . . . Trap 1 | . . . . . . . . 1 . Miscellaneous . | . . . . . . . . . . Route ------- -11/Scrapyard -10/Materials (discovered 5 exits: [*Mat x3] / [*Min] / [*Sub]) -10/Subcaves (discovered 2 exits: [*Mat] / *Scr) -9/Scraptown (discovered 2 exits: *Fac x2) -6/Factory (discovered 2 exits: *Fac / *Low) -6/Waste -6/Factory (discovered 4 exits: *Fac / *Low x2 / Gar) -6/Garrison -5/Factory (discovered 6 exits: *Fac x2 / *Upp x2 / *Ext x2) -4/Factory (discovered 6 exits: *Res x4 / *Upp x2) History --------- Turn | Location | Event 7 | -11/Scrapyard | Discovered new exit (range 15) 65 | -11/Scrapyard | Entered Materials 263 | -10/Materials | Discovered new exit (range 3) 282 | -10/Materials | Discovered new exit (range 15) 316 | -10/Materials | Build established: Mutant 455 | -10/Materials | Discovered new exit (range 12) 572 | -10/Materials | Discovered new exit (range 11) 705 | -10/Materials | Lost 3 parts (2n1w) 1058 | -10/Materials | Discovered new exit (range 8) 1060 | -10/Materials | Entered Subcaves 1061 | -10/Subcaves | Approached by a straggling Scientist 1065 | -10/Subcaves | Learned location of 1 exit from Materials 1133 | -10/Subcaves | Discovered new exit (range 9) 1277 | -10/Subcaves | Shifting Twisted Machinery released Mak. Axe 1281 | -10/Subcaves | Shifting Twisted Machinery released Scrap Shield 1286 | -10/Subcaves | A swath of the cavern ceiling suddenly collapsed 1335 | -10/Subcaves | Disturbed a concealed Subdweller 1363 | -10/Subcaves | Entered Scraptown 1366 | -9/Scraptown | Build established: Sprinter 1387 | -9/Scraptown | Received an X-ray algorithm 1413 | -9/Scraptown | Visited Awakened 1418 | -9/Scraptown | Visited CR-KLE's Repair Center 1431 | -9/Scraptown | Scanned Subdweller tech in exchange for log data 1432 | -9/Scraptown | Learned location of 1 exit from Lower Caves 1436 | -9/Scraptown | Discovered new exit (range 11) 1491 | -9/Scraptown | Visited Assassins FH 1500 | -9/Scraptown | Visited Fellowship of the Rings 1507 | -9/Scraptown | Visited CPS Storage 1511 | -9/Scraptown | Heard Great Nut preacher, LISTEN AND RECITE! 1511 | -9/Scraptown | Visited Red Mages 1589 | -9/Scraptown | Visited UFD Registry 1593 | -9/Scraptown | Visited TADAMA 1604 | -9/Scraptown | Registered with UFD as "Hardsourcer" 1628 | -9/Scraptown | Visited Supply Room 1636 | -9/Scraptown | Visited Observation Area 1649 | -9/Scraptown | Visited Science Guys 1672 | -9/Scraptown | Visited Science Testing Area 1720 | -9/Scraptown | Visited Scrapoid Research Area 1726 | -9/Scraptown | Visited Research Penetration Think Tank 1734 | -9/Scraptown | Visited Chapter 10 1741 | -9/Scraptown | Visited Supply Room 1747 | -9/Scraptown | Visited Curators Association 1770 | -9/Scraptown | Discovered new exit (range 5) 1898 | -9/Scraptown | Met Optimus 1898 | -9/Scraptown | Accepted into 0bPrime 1919 | -9/Scraptown | Civil war broke out across Scraptown 1922 | -9/Scraptown | Found Surveybot 24 Chip 1949 | -9/Scraptown | Entered Factory 1949 | -6/Factory | Evolved 8 slots: Propulsion x2, Utility x6 1955 | -6/Factory | Discovered new exit (range 15) 1966 | -6/Factory | Lost 3 allies 2023 | -6/Factory | Discovered new exit (range 12) 2226 | -6/Factory | Build established: Hacker-Mutant 2435 | -6/Factory | Loaded intel: 8 recycling unit locations 2446 | -6/Factory | Learned location of Protoforge (-2) 2484 | -6/Factory | Manually triggered Chute Trap 2484 | -6/Factory | Sucked down chute 2484 | -6/Factory | Entered Waste 2493 | -6/Waste | Spotted C-40 Crusher 2498 | -6/Waste | Spotted C-40 Crusher 2499 | -6/Waste | Spotted C-40 Crusher 2501 | -6/Waste | Spotted C-40 Crusher 2521 | -6/Waste | Spotted C-40 Crusher 2524 | -6/Waste | Spotted C-40 Crusher 2524 | -6/Waste | Discovered new exit (range 16) 2529 | -6/Waste | Identified exit to Factory 2529 | -6/Waste | Entered Factory 2554 | -6/Factory | Discovered new exit (range 9) 2631 | -6/Factory | Repaired Broken Enh. Optical Array 2719 | -6/Factory | Loaded intel: 8 recycling unit locations 2749 | -6/Factory | Identified exit to Lower Caves 2758 | -6/Factory | Build established: Hacker-Scout 2868 | -6/Factory | Identified exit to Factory 3085 | -6/Factory | Fabricated Adv. Sensor Array (x2) 3370 | -6/Factory | Garrison activated, responded to threat 3548 | -6/Factory | Identified exit to Garrison 3548 | -6/Factory | Entered Garrison 3557 | -6/Garrison | Rescued a captive Derelict 3558 | -6/Garrison | Rescued a captive Derelict 3566 | -6/Garrison | Installed Relay Interface Framework 3569 | -6/Garrison | Spotted B-75 Beast 3580 | -6/Garrison | Discovered exit to Factory (range 10) 3582 | -6/Garrison | Entered Factory 3582 | -5/Factory | Evolved 2 slots: Utility x2 3583 | -5/Factory | Identified exit to Extension 3642 | -5/Factory | Discovered new exit (range 20) 3677 | -5/Factory | Identified exit to Upper Caves 3922 | -5/Factory | Loaded intel: 8 recycling unit locations 3974 | -5/Factory | Discovered new exit (range 6) 4182 | -5/Factory | Search patrols dispatched 4234 | -5/Factory | Lost 4 parts (2n2u) 4256 | -5/Factory | Scraphulk reinforcements arrived? 4338 | -5/Factory | Spotted 05F01-K 4396 | -5/Factory | Core integrity fell below 50% 4398 | -5/Factory | Scrapoids reinforcements arrived? 4439 | -5/Factory | Lost 8 parts (3n4u1w) 4454 | -5/Factory | Discovered new exit (range 5) 4455 | -5/Factory | Entered another Factory area 4455 | -4/Factory | Evolved 2 slots: Propulsion x1, Utility x1 4474 | -4/Factory | Discovered new exit (range 6) 4619 | -4/Factory | Loaded intel: 8 recycling unit locations 4702 | -4/Factory | Noticed UFD Elites at a Recycling Unit 4705 | -4/Factory | Search patrols dispatched 4740 | -4/Factory | Discovered new exit (range 9) 4778 | -4/Factory | Found Prototype Hackware 4778 | -4/Factory | Identified Exp. Hacking Suite 4780 | -4/Factory | Found Exp. Hacking Suite 4835 | -4/Factory | Lost 4 parts (3u1w) 4842 | -4/Factory | Found Exp. Hacking Suite 4844 | -4/Factory | Found Exp. Hacking Suite 4877 | -4/Factory | Spotted B-86 Titan 4904 | -4/Factory | Identified exit to Upper Caves 4904 | -4/Factory | Identified exit to Research 4943 | -4/Factory | Core integrity fell below 50% 4955 | -4/Factory | Search patrols dispatched 4961 | -4/Factory | Lost 11 parts (1p4n6u) 4972 | -4/Factory | Destroyed by G-67 Veteran with Plasma Rifle Last Messages --------------- 04930_ Penetrated by Slug. 04930_ Slug penetrates Power Conduit. 04930_ Power Conduit explodes. 04930_ Cld. Field Propulsion Drive destroyed. 04930_ Field Propulsion Array destroyed. 04944_ Knocked back. 04946_ Slug penetrates Wall. 04955_ ALERT: Heightened foreign activity detected, multiple search patrols dispatched. 04964_ Core Analyzer destroyed. 04968_ ALERT: Suspicious intruders detected, dispatching Cutter reinforcements to area. 04969_ W-44 Eye sends out distress signal. 04970_ Acquired 6 matter. 04972_ Power Conduit explodes. 04972_ O-24 Administrator destroyed. 04972_ Power Conduit explodes. 04972_ C-35 Carver destroyed. 04972_ Terminal disabled. 04972_ Exp. Hacking Suite severed. Map ----- +----------------------------------------------------+ | ???????????# ]! """ # # | | ???????????# ]! # ### | | ???????????## ]# #? | | ???????????# ######## #? | | ???????????## = ######### # | | ????????????## = # ## # | | ?????????????# = #### + " | | ?????????????# """ + # " | | ?????????????# ! """ #### # " | | ?????????????# """ #??# #? | | ?????????????# #??###+#+## ### | | ?????????????# #??? ?# # " | | ?????????????# #? # # | | ????????################ ! + # | | ????????# #?# # # | | ????????# " ### # # | | ????????# * ;## # # | | ????????# * ;## = ! # # | | ????????# ; # # ### | | ????????# p =;############ | | ????????# ; #?????????# | | ???????##p ;#??????????# | | ???????#; ;#??????????# | | ???????#; p c ;#??????????# | | ???????#; ;#??????????######### | | ???????#; @ ##???????????# ! | | ???????##;; c ;###???????????# | | ????????## ; *w #???????????# | | ?????????##; % #???????????# """ | | ??????????## #???????????# """ | | ???????????# #???????????# """ | | ???????????# ##+#???????????# | | ???????????# #???? ??????# """ | | ???????????# g #????"" #?????# """ | | ???????????# #???""" #?????# """ | | ??????????## ##?"""" #?????# ? | | ??????????# g g% # """" #?????# ?? | | ??????????# H " """" #?????????#### | | ??????????# # """" #????????????? | | ??????????# # """" #????????????? | | ??????????# < + !#????????????? | | ??????????# g # #????????????? | | ??????????# # #????????????? | | ??????????# #? #????????????? | | ???????#### #? #????????????? | | ??????## """ ###?? "" #????????????# | | ????### " g"#??? T" #????????????# | | ##### ##???? "" #????????????# | | # #????? #?????? ??# | | # #??????####????# ??# | +----------------------------------------------------+ Best States ------------- Heat Dissipation 43 Energy Generation 20 Energy Capacity 250 Matter Stores 300 Matter Capacity 300 Sight Range 22 Robot Scan Range 16 Terrain Scan Density 10 Cloak Strength 3 Power Amplification 50 Additional Mass Support 6 Corruption Block 8 Armor Coverage 225 Resistance: KI 20 Evasion (%) 73 Melee Accuracy 6 Core Analysis 6 Offensive Hacking 60 Defensive Hacking 14 Item Schematics ----------------- Enh. Optical Array | -6/Factory | Scanalyzed Adv. Sensor Array | -6/Factory | Hacked Lrn. Sensor Array | -5/Factory | Hacked Q-thruster | -5/Factory | Hacked Robot Schematics ------------------ None Fabricated ------------ Adv. Sensor Array | x2 | -6/Factory Repaired ---------- Enh. Optical Array | 14% | -6/Factory | Broken Studied --------- Xenon Bombardment Thruster | -6/Factory | Hacked Alien Tech Used ----------------- None Achievements -------------- May I Have Another? Challenges ------------ None Game ------ Seed BombMultitargetingKit Manual? 0 Play Time 01:47:15 Cumulative 124.9 hours Start 2026.01.31 @ 12:08:23 End 2026.01.31 @ 14:03:07 Sessions 1 Manual Loads 0 Difficulty Rogue Special Mode None Game No. 56 Rogue 56 Adventurer 0 Explorer 0 Win Type - Total 6 Types 5/0/1/0/0/0/0/0/0/0 Lore% 59 Gallery% 63 Achievement% 56 Wizard Run 0 Options --------- Layout 0 ASCII 0 Keyboard 1 Movement Arrows Keybinds 0 Fullscreen 1 Font 18/SmallcapsGlow Map View 76x50 Zoom Use 0% Tactical HUD 1 Map Filters NONE Filters NONE Steam 1 RUN: a7c97113-c14b-4ffe-83b2-5796c30f27ff